[Event "Titled Tuesday Blitz May 11 2021"]
[White "Stoleriu, George"]
[Black "Seo, Jung Min"]
[WhiteFideId "1227505"]
[BlackFideId "1734687"]
[WhiteElo "2227"]
[BlackElo "2486"]
[Result "0-1"]
[Round "03"]
[TimeControl "180+1"]
[Date "2021.05.11"]
[WhiteClock "0:00:10"]
[BlackClock "0:00:29"]

1. e4 {[%clk 0:03:00]}  c6 {[%clk 0:03:00]} 2. Nf3 {[%clk 0:02:59]}  d5 {[%clk 0:03:01]} 3. exd5 {[%clk 0:03:00]}  cxd5 {[%clk 0:03:01]} 4. Ne5 {[%clk 0:03:01]}  Nc6 {[%clk 0:03:00]} 5. d4 {[%clk 0:03:01]}  Nf6 {[%clk 0:02:58]} 6. Bb5 {[%clk 0:03:00]}  Bd7 {[%clk 0:02:58]} 7. Nxd7 {[%clk 0:02:59]}  Qxd7 {[%clk 0:02:59]} 8. O-O {[%clk 0:02:58]}  e6 {[%clk 0:02:59]} 9. Re1 {[%clk 0:02:53]}  a6 {[%clk 0:02:59]} 10. Bf1 {[%clk 0:02:50]}  Bd6 {[%clk 0:02:59]} 11. c3 {[%clk 0:02:50]}  O-O {[%clk 0:02:59]} 12. Nd2 {[%clk 0:02:47]}  b5 {[%clk 0:02:58]} 13. Bd3 {[%clk 0:02:47]}  b4 {[%clk 0:02:55]} 14. Nf3 {[%clk 0:02:41]}  bxc3 {[%clk 0:02:55]} 15. bxc3 {[%clk 0:02:42]}  Qc7 {[%clk 0:02:55]} 16. Bg5 {[%clk 0:02:39]}  Nd7 {[%clk 0:02:49]} 17. Qd2 {[%clk 0:02:36]}  Rfc8 {[%clk 0:02:43]} 18. h4 {[%clk 0:02:31]}  Na5 {[%clk 0:02:42]} 19. Rac1 {[%clk 0:02:30]}  Nc4 {[%clk 0:02:41]} 20. Qe2 {[%clk 0:02:27]}  h6 {[%clk 0:02:40]} 21. Be3 {[%clk 0:02:25]}  Rab8 {[%clk 0:02:40]} 22. Rc2 {[%clk 0:02:24]}  a5 {[%clk 0:02:32]} 23. g4 {[%clk 0:02:24]}  Nxe3 {[%clk 0:02:30]} 24. fxe3 {[%clk 0:02:25]}  e5 {[%clk 0:02:29]} 25. e4 {[%clk 0:02:24]}  dxe4 {[%clk 0:02:26]} 26. Qxe4 {[%clk 0:02:20]}  Nf6 {[%clk 0:02:26]} 27. Qf5 {[%clk 0:02:21]}  e4 {[%clk 0:02:09]} 28. Bxe4 {[%clk 0:02:17]}  Re8 {[%clk 0:02:07]} 29. g5 {[%clk 0:02:13]}  hxg5 {[%clk 0:02:02]} 30. hxg5 {[%clk 0:02:13]}  Nxe4 {[%clk 0:02:02]} 31. Rxe4 {[%clk 0:02:14]}  g6 {[%clk 0:01:59]} 32. Qd5 {[%clk 0:02:13]}  Rxe4 {[%clk 0:01:58]} 33. Qxe4 {[%clk 0:02:14]}  Qd7 {[%clk 0:01:55]} 34. Re2 {[%clk 0:01:46]}  Qh3 {[%clk 0:01:49]} 35. Ne5 {[%clk 0:01:21]}  Bxe5 {[%clk 0:01:41]} 36. dxe5 {[%clk 0:01:22]}  Rd8 {[%clk 0:01:36]} 37. e6 {[%clk 0:00:46]}  Rd1+ {[%clk 0:01:34]} 38. Re1 {[%clk 0:00:46]}  Qg3+ {[%clk 0:01:19]} 39. Kf1 {[%clk 0:00:45]}  Qh3+ {[%clk 0:01:14]} 40. Kg1 {[%clk 0:00:43]}  Qg3+ {[%clk 0:00:52]} 41. Kf1 {[%clk 0:00:43]}  Rxe1+ {[%clk 0:00:51]} 42. Qxe1 {[%clk 0:00:44]}  Qf3+ {[%clk 0:00:48]} 43. Kg1 {[%clk 0:00:38]}  Qg4+ {[%clk 0:00:47]} 44. Kf1 {[%clk 0:00:26]}  Qf5+ {[%clk 0:00:47]} 45. Ke2 {[%clk 0:00:26]}  Qxe6+ {[%clk 0:00:46]} 46. Kd1 {[%clk 0:00:27]}  Qxa2 {[%clk 0:00:44]} 47. Qe8+ {[%clk 0:00:27]}  Kh7 {[%clk 0:00:44]} 48. Kc1 {[%clk 0:00:22]}  a4 {[%clk 0:00:37]} 49. Qe5 {[%clk 0:00:19]}  a3 {[%clk 0:00:35]} 50. Qc7 {[%clk 0:00:13]}  Qb2+ {[%clk 0:00:31]} 51. Kd1 {[%clk 0:00:12]}  Qb3+ {[%clk 0:00:31]} 52. Kd2 {[%clk 0:00:11]}  a2 {[%clk 0:00:30]} 53. Qh2+ {[%clk 0:00:11]}  Kg8 {[%clk 0:00:30]} 54. Qh1 {[%clk 0:00:10]}  Qb2+ {[%clk 0:00:29]} 0-1


[Site "https://www.chess.com"]

[Event "Titled Tuesday Blitz May 11 2021"]
[White "Tarasova, Viktoriya"]
[Black "Paichadze, Luka"]
[WhiteFideId "4175840"]
[BlackFideId "13602934"]
[WhiteElo "2182"]
[BlackElo "2537"]
[Result "0-1"]
[Round "03"]
[TimeControl "180+1"]
[Date "2021.05.11"]
[WhiteClock "0:00:19"]
[BlackClock "0:00:41"]

1. d4 {[%clk 0:03:00]}  Nf6 {[%clk 0:02:58]} 2. c4 {[%clk 0:03:00]}  e6 {[%clk 0:02:55]} 3. Nc3 {[%clk 0:02:59]}  Bb4 {[%clk 0:02:55]} 4. Nf3 {[%clk 0:02:59]}  O-O {[%clk 0:02:49]} 5. Bg5 {[%clk 0:02:58]}  h6 {[%clk 0:02:39]} 6. Bh4 {[%clk 0:02:58]}  c5 {[%clk 0:02:36]} 7. Rc1 {[%clk 0:02:57]}  cxd4 {[%clk 0:02:30]} 8. Nxd4 {[%clk 0:02:56]}  Nc6 {[%clk 0:02:30]} 9. e3 {[%clk 0:02:53]}  g5 {[%clk 0:02:29]} 10. Bg3 {[%clk 0:02:52]}  Ne4 {[%clk 0:02:29]} 11. Bd3 {[%clk 0:02:41]}  Nxc3 {[%clk 0:02:23]} 12. bxc3 {[%clk 0:02:40]}  Ba3 {[%clk 0:02:23]} 13. Rc2 {[%clk 0:02:22]}  Nxd4 {[%clk 0:02:23]} 14. exd4 {[%clk 0:02:17]}  f5 {[%clk 0:02:22]} 15. f3 {[%clk 0:02:13]}  f4 {[%clk 0:02:19]} 16. Bf2 {[%clk 0:02:13]}  d5 {[%clk 0:02:18]} 17. O-O {[%clk 0:02:10]}  Bd7 {[%clk 0:02:15]} 18. Re2 {[%clk 0:02:03]}  Qa5 {[%clk 0:02:05]} 19. Qb3 {[%clk 0:01:56]}  Bd6 {[%clk 0:02:02]} 20. c5 {[%clk 0:01:51]}  Bc7 {[%clk 0:01:55]} 21. Bb1 {[%clk 0:01:39]}  Qa4 {[%clk 0:01:37]} 22. Qxa4 {[%clk 0:01:16]}  Bxa4 {[%clk 0:01:38]} 23. Rxe6 {[%clk 0:01:16]}  Rae8 {[%clk 0:01:38]} 24. Rfe1 {[%clk 0:01:15]}  Rxe6 {[%clk 0:01:34]} 25. Rxe6 {[%clk 0:01:15]}  Re8 {[%clk 0:01:34]} 26. Rxe8+ {[%clk 0:01:03]}  Bxe8 {[%clk 0:01:33]} 27. Bd3 {[%clk 0:00:58]}  Ba5 {[%clk 0:01:25]} 28. Be1 {[%clk 0:00:57]}  Ba4 {[%clk 0:01:23]} 29. Kf2 {[%clk 0:00:56]}  Kf8 {[%clk 0:01:23]} 30. Ke2 {[%clk 0:00:56]}  Kf7 {[%clk 0:01:23]} 31. g3 {[%clk 0:00:55]}  fxg3 {[%clk 0:01:21]} 32. hxg3 {[%clk 0:00:55]}  h5 {[%clk 0:01:22]} 33. Bf5 {[%clk 0:00:51]}  b6 {[%clk 0:01:16]} 34. cxb6 {[%clk 0:00:48]}  axb6 {[%clk 0:01:17]} 35. Bd3 {[%clk 0:00:42]}  Kf6 {[%clk 0:01:04]} 36. Bd2 {[%clk 0:00:40]}  h4 {[%clk 0:00:52]} 37. gxh4 {[%clk 0:00:39]}  gxh4 {[%clk 0:00:52]} 38. Kf2 {[%clk 0:00:39]}  Bd7 {[%clk 0:00:49]} 39. Kg2 {[%clk 0:00:39]}  b5 {[%clk 0:00:48]} 40. Be1 {[%clk 0:00:30]}  Kg5 {[%clk 0:00:47]} 41. Bd2+ {[%clk 0:00:30]}  Kh5 {[%clk 0:00:47]} 42. Be2 {[%clk 0:00:30]}  Bc7 {[%clk 0:00:40]} 43. f4+ {[%clk 0:00:27]}  Bg4 {[%clk 0:00:39]} 44. Bxg4+ {[%clk 0:00:20]}  Kxg4 {[%clk 0:00:40]} 45. Be3 {[%clk 0:00:19]}  Bxf4 {[%clk 0:00:37]} 46. Bxf4 {[%clk 0:00:19]}  Kxf4 {[%clk 0:00:38]} 47. Kh3 {[%clk 0:00:19]}  Ke3 {[%clk 0:00:39]} 48. Kxh4 {[%clk 0:00:19]}  Kd3 {[%clk 0:00:40]} 49. Kg5 {[%clk 0:00:19]}  Kxc3 {[%clk 0:00:40]} 50. Kf5 {[%clk 0:00:19]}  Kxd4 {[%clk 0:00:40]} 51. Ke6 {[%clk 0:00:20]}  Kc4 {[%clk 0:00:40]} 52. Ke5 {[%clk 0:00:19]}  d4 {[%clk 0:00:41]} 0-1


[Site "https://www.chess.com"]

[Event "Titled Tuesday Blitz May 11 2021"]
[White "Tari, Aryan"]
[Black "Potapova, Margarita"]
[WhiteFideId "1510045"]
[BlackFideId "14126869"]
[WhiteElo "2656"]
[BlackElo "2229"]
[Result "1-0"]
[Round "03"]
[TimeControl "180+1"]
[Date "2021.05.11"]
[WhiteClock "0:00:25"]
[BlackClock "0:00:05"]

1. g3 {[%clk 0:03:00]}  d5 {[%clk 0:02:55]} 2. Nf3 {[%clk 0:03:00]}  Nf6 {[%clk 0:02:52]} 3. Bg2 {[%clk 0:03:00]}  e6 {[%clk 0:02:50]} 4. O-O {[%clk 0:02:57]}  c5 {[%clk 0:02:50]} 5. c4 {[%clk 0:02:52]}  d4 {[%clk 0:02:49]} 6. b4 {[%clk 0:02:51]}  cxb4 {[%clk 0:02:36]} 7. a3 {[%clk 0:02:51]}  bxa3 {[%clk 0:02:36]} 8. Bxa3 {[%clk 0:02:52]}  Bxa3 {[%clk 0:02:36]} 9. Nxa3 {[%clk 0:02:53]}  O-O {[%clk 0:02:36]} 10. d3 {[%clk 0:02:51]}  Nc6 {[%clk 0:02:35]} 11. Qb3 {[%clk 0:02:46]}  e5 {[%clk 0:02:31]} 12. Rfb1 {[%clk 0:02:43]}  e4 {[%clk 0:02:26]} 13. dxe4 {[%clk 0:01:49]}  Nxe4 {[%clk 0:02:27]} 14. Nb5 {[%clk 0:01:49]}  Bf5 {[%clk 0:02:20]} 15. Rd1 {[%clk 0:01:46]}  Qf6 {[%clk 0:01:34]} 16. Nbxd4 {[%clk 0:01:21]}  Nxd4 {[%clk 0:01:34]} 17. Rxd4 {[%clk 0:01:16]}  Nc5 {[%clk 0:01:33]} 18. Qa3 {[%clk 0:01:10]}  Ne6 {[%clk 0:01:24]} 19. Rd6 {[%clk 0:01:04]}  Rac8 {[%clk 0:01:14]} 20. Rad1 {[%clk 0:00:46]}  a6 {[%clk 0:01:06]} 21. Nd4 {[%clk 0:00:44]}  Rxc4 {[%clk 0:00:56]} 22. Nxf5 {[%clk 0:00:44]}  Qxf5 {[%clk 0:00:57]} 23. Bxb7 {[%clk 0:00:43]}  h5 {[%clk 0:00:36]} 24. h4 {[%clk 0:00:41]}  Rc2 {[%clk 0:00:33]} 25. Qf3 {[%clk 0:00:38]}  Qxf3 {[%clk 0:00:30]} 26. Bxf3 {[%clk 0:00:39]}  g6 {[%clk 0:00:23]} 27. Rxa6 {[%clk 0:00:39]}  Ng7 {[%clk 0:00:22]} 28. Rd7 {[%clk 0:00:35]}  Nf5 {[%clk 0:00:20]} 29. Kg2 {[%clk 0:00:35]}  Nh6 {[%clk 0:00:17]} 30. Bxh5 {[%clk 0:00:32]}  Nf5 {[%clk 0:00:07]} 31. Bg4 {[%clk 0:00:30]}  Ng7 {[%clk 0:00:07]} 32. Raa7 {[%clk 0:00:27]}  Rb2 {[%clk 0:00:07]} 33. e4 {[%clk 0:00:26]}  Rb4 {[%clk 0:00:06]} 34. Bf3 {[%clk 0:00:26]}  Rb3 {[%clk 0:00:07]} 35. e5 {[%clk 0:00:26]}  Rb6 {[%clk 0:00:06]} 36. Bd5 {[%clk 0:00:26]}  Rb5 {[%clk 0:00:05]} 37. Bxf7+ {[%clk 0:00:25]}  Kh8 {[%clk 0:00:05]} 38. Bxg6 {[%clk 0:00:25]} 1-0


[Site "https://www.chess.com"]

[Event "Titled Tuesday Blitz May 11 2021"]
[White "Topalov, Aleksandar"]
[Black "Sammed_Shete"]
[WhiteFideId "925659"]
[WhiteElo "2228"]
[BlackElo "2649"]
[Result "0-1"]
[Round "03"]
[TimeControl "180+1"]
[Date "2021.05.11"]
[WhiteClock "0:00:11"]
[BlackClock "0:00:16"]

1. b3 {[%clk 0:03:00]}  Nf6 {[%clk 0:02:57]} 2. Bb2 {[%clk 0:03:00]}  g6 {[%clk 0:02:58]} 3. Bxf6 {[%clk 0:03:00]}  exf6 {[%clk 0:02:58]} 4. c4 {[%clk 0:03:01]}  f5 {[%clk 0:02:56]} 5. Nc3 {[%clk 0:03:01]}  Bg7 {[%clk 0:02:57]} 6. e3 {[%clk 0:03:01]}  b6 {[%clk 0:02:53]} 7. Nge2 {[%clk 0:03:01]}  Bb7 {[%clk 0:02:53]} 8. Rc1 {[%clk 0:02:54]}  O-O {[%clk 0:02:50]} 9. Nf4 {[%clk 0:02:54]}  Nc6 {[%clk 0:02:44]} 10. Be2 {[%clk 0:02:51]}  d6 {[%clk 0:02:32]} 11. d4 {[%clk 0:02:48]}  Nb8 {[%clk 0:02:29]} 12. O-O {[%clk 0:02:45]}  Nd7 {[%clk 0:02:29]} 13. Ncd5 {[%clk 0:02:39]}  c6 {[%clk 0:02:25]} 14. Nc3 {[%clk 0:02:38]}  Nf6 {[%clk 0:02:26]} 15. Bf3 {[%clk 0:02:29]}  Qe7 {[%clk 0:02:23]} 16. g3 {[%clk 0:02:28]}  Ne4 {[%clk 0:02:20]} 17. Bg2 {[%clk 0:02:16]}  h5 {[%clk 0:02:19]} 18. h4 {[%clk 0:02:13]}  Nf6 {[%clk 0:02:13]} 19. b4 {[%clk 0:02:07]}  Rfe8 {[%clk 0:01:59]} 20. b5 {[%clk 0:02:04]}  c5 {[%clk 0:01:58]} 21. Bxb7 {[%clk 0:02:02]}  Qxb7 {[%clk 0:01:56]} 22. dxc5 {[%clk 0:02:02]}  dxc5 {[%clk 0:01:55]} 23. Ncd5 {[%clk 0:02:02]}  Ng4 {[%clk 0:01:46]} 24. Qf3 {[%clk 0:02:00]}  Kh8 {[%clk 0:01:38]} 25. Rfd1 {[%clk 0:01:52]}  Rad8 {[%clk 0:01:34]} 26. Nh3 {[%clk 0:01:46]}  Ne5 {[%clk 0:01:21]} 27. Qe2 {[%clk 0:01:40]}  Rd7 {[%clk 0:01:20]} 28. Nhf4 {[%clk 0:01:39]}  Red8 {[%clk 0:01:20]} 29. a4 {[%clk 0:01:17]}  a6 {[%clk 0:01:13]} 30. Nxh5 {[%clk 0:00:25]}  gxh5 {[%clk 0:00:56]} 31. Qxh5+ {[%clk 0:00:25]}  Kg8 {[%clk 0:00:57]} 32. bxa6 {[%clk 0:00:25]}  Qxa6 {[%clk 0:00:45]} 33. Qxf5 {[%clk 0:00:25]}  Kf8 {[%clk 0:00:36]} 34. e4 {[%clk 0:00:20]}  Nxc4 {[%clk 0:00:32]} 35. Rxc4 {[%clk 0:00:19]}  Qxc4 {[%clk 0:00:30]} 36. Rb1 {[%clk 0:00:16]}  Rxd5 {[%clk 0:00:20]} 37. exd5 {[%clk 0:00:16]}  Qxd5 {[%clk 0:00:21]} 38. Qxd5 {[%clk 0:00:15]}  Rxd5 {[%clk 0:00:22]} 39. Rxb6 {[%clk 0:00:15]}  Rd1+ {[%clk 0:00:22]} 40. Kg2 {[%clk 0:00:15]}  Ra1 {[%clk 0:00:23]} 41. Rc6 {[%clk 0:00:15]}  Bd4 {[%clk 0:00:23]} 42. h5 {[%clk 0:00:14]}  Kg7 {[%clk 0:00:18]} 43. g4 {[%clk 0:00:13]}  Rxa4 {[%clk 0:00:16]} 44. g5 {[%clk 0:00:14]}  Ra2 {[%clk 0:00:17]} 45. Rc7 {[%clk 0:00:12]}  Rxf2+ {[%clk 0:00:16]} 46. Kg3 {[%clk 0:00:12]}  Be5+ {[%clk 0:00:16]} 47. Kxf2 {[%clk 0:00:11]}  Bxc7 {[%clk 0:00:16]} 0-1


[Site "https://www.chess.com"]

[Event "Titled Tuesday Blitz May 11 2021"]
[White "Triapishko, Alexandr"]
[Black "Purtseladze, Maka"]
[WhiteFideId "14122286"]
[BlackFideId "13602659"]
[WhiteElo "2490"]
[BlackElo "2178"]
[Result "0-1"]
[Round "03"]
[TimeControl "180+1"]
[Date "2021.05.11"]
[WhiteClock "0:00:01"]
[BlackClock "0:00:11"]

1. e4 {[%clk 0:02:51]}  c6 {[%clk 0:02:59]} 2. d4 {[%clk 0:02:46]}  d5 {[%clk 0:03:00]} 3. f3 {[%clk 0:02:46]}  Qb6 {[%clk 0:02:59]} 4. c3 {[%clk 0:02:31]}  g6 {[%clk 0:02:43]} 5. e5 {[%clk 0:02:23]}  h5 {[%clk 0:02:42]} 6. f4 {[%clk 0:02:22]}  Bg4 {[%clk 0:02:37]} 7. Qb3 {[%clk 0:02:18]}  Nh6 {[%clk 0:02:35]} 8. Bd3 {[%clk 0:01:49]}  Bf5 {[%clk 0:02:34]} 9. Be2 {[%clk 0:01:40]}  Bxb1 {[%clk 0:01:41]} 10. Rxb1 {[%clk 0:01:26]}  e6 {[%clk 0:01:41]} 11. Nf3 {[%clk 0:01:25]}  Nf5 {[%clk 0:01:40]} 12. O-O {[%clk 0:01:22]}  c5 {[%clk 0:01:39]} 13. Qxb6 {[%clk 0:01:07]}  axb6 {[%clk 0:01:40]} 14. a3 {[%clk 0:01:07]}  Nc6 {[%clk 0:01:40]} 15. Bb5 {[%clk 0:01:07]}  c4 {[%clk 0:01:30]} 16. b3 {[%clk 0:01:00]}  cxb3 {[%clk 0:01:25]} 17. Rxb3 {[%clk 0:01:01]}  Be7 {[%clk 0:00:59]} 18. a4 {[%clk 0:00:58]}  Kd7 {[%clk 0:00:57]} 19. Bd2 {[%clk 0:00:57]}  Kc7 {[%clk 0:00:47]} 20. g3 {[%clk 0:00:58]}  Na5 {[%clk 0:00:47]} 21. Rb2 {[%clk 0:00:51]}  Nc4 {[%clk 0:00:46]} 22. Ra2 {[%clk 0:00:27]}  Ra5 {[%clk 0:00:44]} 23. Rb1 {[%clk 0:00:14]}  Rha8 {[%clk 0:00:39]} 24. Bxc4 {[%clk 0:00:14]}  dxc4 {[%clk 0:00:39]} 25. Rab2 {[%clk 0:00:15]}  R8a6 {[%clk 0:00:37]} 26. Kf2 {[%clk 0:00:11]}  Rxa4 {[%clk 0:00:38]} 27. h3 {[%clk 0:00:12]}  Ba3 {[%clk 0:00:36]} 28. Rc2 {[%clk 0:00:08]}  Be7 {[%clk 0:00:30]} 29. g4 {[%clk 0:00:07]}  hxg4 {[%clk 0:00:30]} 30. hxg4 {[%clk 0:00:08]}  Nh4 {[%clk 0:00:20]} 31. Ne1 {[%clk 0:00:06]}  Ra2 {[%clk 0:00:20]} 32. Rcb2 {[%clk 0:00:06]}  Rxb2 {[%clk 0:00:19]} 33. Rxb2 {[%clk 0:00:07]}  Ra1 {[%clk 0:00:19]} 34. Kg3 {[%clk 0:00:04]}  Kc6 {[%clk 0:00:19]} 35. Kf2 {[%clk 0:00:03]}  b5 {[%clk 0:00:19]} 36. Kg3 {[%clk 0:00:02]}  Rd1 {[%clk 0:00:17]} 37. Kf2 {[%clk 0:00:02]}  g5 {[%clk 0:00:13]} 38. Kg3 {[%clk 0:00:02]}  Ng6 {[%clk 0:00:12]} 39. f5 {[%clk 0:00:02]}  Nf4 {[%clk 0:00:12]} 40. f6 {[%clk 0:00:02]}  Ba3 {[%clk 0:00:11]} 41. Ra2 {[%clk 0:00:01]}  Ne2+ {[%clk 0:00:11]} 42. Kf2 {[%clk 0:00:01]}  Nc1 {[%clk 0:00:10]} 43. Rxa3 {[%clk 0:00:01]}  Rxd2+ {[%clk 0:00:10]} 44. Kf3 {[%clk 0:00:02]}  Nd3 {[%clk 0:00:10]} 45. Nxd3 {[%clk 0:00:01]}  Rxd3+ {[%clk 0:00:11]} 46. Ke4 {[%clk 0:00:02]}  b4 {[%clk 0:00:11]} 47. Ra8 {[%clk 0:00:01]}  Rxc3 {[%clk 0:00:12]} 48. Rf8 {[%clk 0:00:01]}  b3 {[%clk 0:00:11]} 49. Rxf7 {[%clk 0:00:01]}  b2 {[%clk 0:00:12]} 50. d5+ {[%clk 0:00:01]}  exd5+ {[%clk 0:00:12]} 51. Kf5 {[%clk 0:00:01]}  b1=Q+ {[%clk 0:00:12]} 52. Ke6 {[%clk 0:00:02]}  Qe4 {[%clk 0:00:12]} 53. Rf8 {[%clk 0:00:03]}  Qxg4+ {[%clk 0:00:12]} 54. Ke7 {[%clk 0:00:03]}  Re3 {[%clk 0:00:12]} 55. Kf7 {[%clk 0:00:01]}  Rxe5 {[%clk 0:00:11]} 0-1


[Site "https://www.chess.com"]

[Event "Titled Tuesday Blitz May 11 2021"]
[White "Tristan, Leonardo"]
[Black "Galego, Luis"]
[WhiteFideId "113816"]
[BlackFideId "1900072"]
[WhiteElo "2404"]
[BlackElo "2524"]
[Result "1-0"]
[Round "03"]
[TimeControl "180+1"]
[Date "2021.05.11"]
[WhiteClock "0:00:04"]
[BlackClock "0:00:01"]

1. d4 {[%clk 0:03:00]}  d5 {[%clk 0:02:56]} 2. Bf4 {[%clk 0:03:01]}  e6 {[%clk 0:02:56]} 3. e3 {[%clk 0:03:01]}  Bd6 {[%clk 0:02:56]} 4. Qg4 {[%clk 0:03:01]}  g6 {[%clk 0:02:51]} 5. Bxd6 {[%clk 0:03:00]}  cxd6 {[%clk 0:02:49]} 6. Nc3 {[%clk 0:03:00]}  Qb6 {[%clk 0:02:47]} 7. O-O-O {[%clk 0:02:46]}  Nc6 {[%clk 0:02:45]} 8. Qg3 {[%clk 0:02:37]}  Nce7 {[%clk 0:02:18]} 9. e4 {[%clk 0:02:19]}  Nf6 {[%clk 0:02:16]} 10. e5 {[%clk 0:02:04]}  Nf5 {[%clk 0:02:07]} 11. Qf4 {[%clk 0:01:56]}  Nd7 {[%clk 0:01:31]} 12. g4 {[%clk 0:01:35]}  dxe5 {[%clk 0:01:31]} 13. dxe5 {[%clk 0:01:36]}  Ne7 {[%clk 0:01:29]} 14. Nf3 {[%clk 0:01:08]}  O-O {[%clk 0:01:27]} 15. g5 {[%clk 0:00:57]}  Nf5 {[%clk 0:01:14]} 16. Bd3 {[%clk 0:00:56]}  Qxf2 {[%clk 0:01:12]} 17. Bxf5 {[%clk 0:00:55]}  gxf5 {[%clk 0:00:46]} 18. Rd2 {[%clk 0:00:54]}  Qb6 {[%clk 0:00:41]} 19. h4 {[%clk 0:00:52]}  Nc5 {[%clk 0:00:36]} 20. h5 {[%clk 0:00:53]}  Ne4 {[%clk 0:00:36]} 21. Nxe4 {[%clk 0:00:49]}  dxe4 {[%clk 0:00:36]} 22. Nd4 {[%clk 0:00:23]}  Kh8 {[%clk 0:00:24]} 23. g6 {[%clk 0:00:22]}  Rg8 {[%clk 0:00:18]} 24. Qh6 {[%clk 0:00:09]}  Rg7 {[%clk 0:00:18]} 25. Rhd1 {[%clk 0:00:08]}  e3 {[%clk 0:00:13]} 26. Nxf5 {[%clk 0:00:07]}  exd2+ {[%clk 0:00:12]} 27. Rxd2 {[%clk 0:00:05]}  exf5 {[%clk 0:00:12]} 28. Rd6 {[%clk 0:00:03]}  Qg1+ {[%clk 0:00:11]} 29. Rd1 {[%clk 0:00:03]}  Qb6 {[%clk 0:00:10]} 30. Rd6 {[%clk 0:00:04]}  Qc7 {[%clk 0:00:07]} 31. Qg5 {[%clk 0:00:04]}  Be6 {[%clk 0:00:07]} 32. Qf6 {[%clk 0:00:03]}  Rc8 {[%clk 0:00:06]} 33. c3 {[%clk 0:00:02]}  hxg6 {[%clk 0:00:06]} 34. h6 {[%clk 0:00:02]}  Rg8 {[%clk 0:00:05]} 35. hxg7+ {[%clk 0:00:03]}  Rxg7 {[%clk 0:00:05]} 36. Rd8+ {[%clk 0:00:03]}  Qxd8 {[%clk 0:00:02]} 37. Qxd8+ {[%clk 0:00:04]}  Kh7 {[%clk 0:00:02]} 38. Qh4+ {[%clk 0:00:05]}  Kg8 {[%clk 0:00:02]} 39. Qd8+ {[%clk 0:00:05]}  Kh7 {[%clk 0:00:02]} 40. Qg5 {[%clk 0:00:06]}  Kg8 {[%clk 0:00:02]} 41. Kd2 {[%clk 0:00:06]}  b6 {[%clk 0:00:02]} 42. Ke3 {[%clk 0:00:06]}  Rh7 {[%clk 0:00:02]} 43. Qd8+ {[%clk 0:00:06]}  Kg7 {[%clk 0:00:02]} 44. Kf4 {[%clk 0:00:06]}  Rh3 {[%clk 0:00:01]} 45. Qf6+ {[%clk 0:00:05]}  Kg8 {[%clk 0:00:02]} 46. Qe7 {[%clk 0:00:05]}  Kg7 {[%clk 0:00:02]} 47. Qxa7 {[%clk 0:00:04]}  Rh4+ {[%clk 0:00:02]} 48. Ke3 {[%clk 0:00:04]}  Re4+ {[%clk 0:00:02]} 49. Kf2 {[%clk 0:00:05]}  b5 {[%clk 0:00:02]} 50. Qc5 {[%clk 0:00:04]}  b4 {[%clk 0:00:01]} 51. cxb4 {[%clk 0:00:04]}  Bxa2 {[%clk 0:00:01]} 52. b5 {[%clk 0:00:04]} 1-0


[Site "https://www.chess.com"]

[Event "Titled Tuesday Blitz May 11 2021"]
[White "Vaishali, Rameshbabu"]
[Black "Sasikiran, Krishnan"]
[WhiteFideId "5091756"]
[BlackFideId "5004985"]
[WhiteElo "2313"]
[BlackElo "2552"]
[Result "0-1"]
[Round "03"]
[TimeControl "180+1"]
[Date "2021.05.11"]
[WhiteClock "0:00:01"]
[BlackClock "0:00:05"]

1. e4 {[%clk 0:03:00]}  c5 {[%clk 0:02:58]} 2. Nf3 {[%clk 0:03:00]}  d6 {[%clk 0:02:58]} 3. d4 {[%clk 0:02:57]}  cxd4 {[%clk 0:02:58]} 4. Nxd4 {[%clk 0:02:58]}  Nf6 {[%clk 0:02:58]} 5. Nc3 {[%clk 0:02:58]}  a6 {[%clk 0:02:59]} 6. a4 {[%clk 0:02:56]}  e6 {[%clk 0:02:54]} 7. Be2 {[%clk 0:02:45]}  Be7 {[%clk 0:02:53]} 8. O-O {[%clk 0:02:45]}  O-O {[%clk 0:02:52]} 9. f4 {[%clk 0:02:45]}  Nc6 {[%clk 0:02:52]} 10. Be3 {[%clk 0:02:44]}  Qc7 {[%clk 0:02:52]} 11. Kh1 {[%clk 0:02:41]}  Re8 {[%clk 0:02:51]} 12. Bf3 {[%clk 0:02:34]}  Bf8 {[%clk 0:02:50]} 13. g4 {[%clk 0:02:27]}  Nd7 {[%clk 0:02:49]} 14. g5 {[%clk 0:02:25]}  Nxd4 {[%clk 0:02:48]} 15. Qxd4 {[%clk 0:02:20]}  b6 {[%clk 0:02:43]} 16. Bg2 {[%clk 0:01:55]}  Bb7 {[%clk 0:02:33]} 17. Rf3 {[%clk 0:01:47]}  g6 {[%clk 0:01:56]} 18. Rd1 {[%clk 0:01:22]}  Rac8 {[%clk 0:01:32]} 19. Bg1 {[%clk 0:00:58]}  Qc4 {[%clk 0:01:23]} 20. Rfd3 {[%clk 0:00:39]}  Qxd4 {[%clk 0:01:16]} 21. Rxd4 {[%clk 0:00:40]}  Bc6 {[%clk 0:00:49]} 22. h4 {[%clk 0:00:30]}  Red8 {[%clk 0:00:40]} 23. Kh2 {[%clk 0:00:21]}  Be7 {[%clk 0:00:37]} 24. h5 {[%clk 0:00:17]}  e5 {[%clk 0:00:30]} 25. Rxd6 {[%clk 0:00:07]}  Bxd6 {[%clk 0:00:26]} 26. Rxd6 {[%clk 0:00:08]}  exf4 {[%clk 0:00:25]} 27. Bh3 {[%clk 0:00:03]}  Ne5 {[%clk 0:00:20]} 28. Rf6 {[%clk 0:00:03]}  Rb8 {[%clk 0:00:18]} 29. h6 {[%clk 0:00:02]}  Rd2+ {[%clk 0:00:16]} 30. Kh1 {[%clk 0:00:02]}  f3 {[%clk 0:00:14]} 31. Nd5 {[%clk 0:00:02]}  Bxd5 {[%clk 0:00:13]} 32. exd5 {[%clk 0:00:03]}  Rxd5 {[%clk 0:00:11]} 33. Be3 {[%clk 0:00:03]}  Rbd8 {[%clk 0:00:09]} 34. Kh2 {[%clk 0:00:03]}  Nc4 {[%clk 0:00:08]} 35. Bf2 {[%clk 0:00:03]}  Rd2 {[%clk 0:00:08]} 36. Kg3 {[%clk 0:00:03]}  Rxc2 {[%clk 0:00:08]} 37. Rxf3 {[%clk 0:00:03]}  Nd2 {[%clk 0:00:07]} 38. Rf4 {[%clk 0:00:02]}  Re8 {[%clk 0:00:07]} 39. Bxb6 {[%clk 0:00:02]}  Ne4+ {[%clk 0:00:06]} 40. Kh4 {[%clk 0:00:02]}  Rxb2 {[%clk 0:00:06]} 41. Bd7 {[%clk 0:00:02]}  Re7 {[%clk 0:00:05]} 42. Bc6 {[%clk 0:00:02]}  Rxb6 {[%clk 0:00:05]} 43. Bxe4 {[%clk 0:00:01]}  Rb4 {[%clk 0:00:05]} 0-1


[Site "https://www.chess.com"]